[Event "Titled Tuesday Blitz December 27 Early 2022"]
[White "Ordekalog"]
[Black "Golizadeh, Asghar"]
[BlackFideId "12505269"]
[WhiteElo "2826"]
[BlackElo "2455"]
[Result "1-0"]
[Round "08"]
[TimeControl "180+2"]
[Date "2022.12.27"]
[WhiteClock "0:00:13"]
[BlackClock "0:00:04"]

1. e4 {[%clk 0:03:00]}  c5 {[%clk 0:02:59]} 2. d3 {[%clk 0:03:00]}  g6 {[%clk 0:02:57]} 3. g3 {[%clk 0:02:59]}  Bg7 {[%clk 0:02:57]} 4. Bg2 {[%clk 0:02:59]}  d6 {[%clk 0:02:56]} 5. f4 {[%clk 0:02:58]}  Nf6 {[%clk 0:02:56]} 6. Nf3 {[%clk 0:02:58]}  O-O {[%clk 0:02:56]} 7. O-O {[%clk 0:02:57]}  Nc6 {[%clk 0:02:57]} 8. c3 {[%clk 0:02:56]}  e5 {[%clk 0:02:54]} 9. f5 {[%clk 0:02:48]}  gxf5 {[%clk 0:02:52]} 10. Nh4 {[%clk 0:02:48]}  f4 {[%clk 0:02:50]} 11. gxf4 {[%clk 0:02:47]}  Nxe4 {[%clk 0:02:41]} 12. dxe4 {[%clk 0:02:36]}  Qxh4 {[%clk 0:02:40]} 13. Qxd6 {[%clk 0:02:30]}  Bh3 {[%clk 0:02:35]} 14. Qxc5 {[%clk 0:02:22]}  Qg4 {[%clk 0:02:32]} 15. Qf2 {[%clk 0:02:21]}  exf4 {[%clk 0:02:32]} 16. Bxf4 {[%clk 0:02:17]}  Nd4 {[%clk 0:02:19]} 17. Bg3 {[%clk 0:01:42]}  Bxg2 {[%clk 0:01:37]} 18. Qxg2 {[%clk 0:01:38]}  Ne2+ {[%clk 0:01:36]} 19. Kh1 {[%clk 0:01:36]}  Nxg3+ {[%clk 0:01:36]} 20. hxg3 {[%clk 0:01:36]}  f5 {[%clk 0:01:24]} 21. Nd2 {[%clk 0:01:33]}  Bh6 {[%clk 0:01:14]} 22. Rae1 {[%clk 0:01:11]}  Rad8 {[%clk 0:00:50]} 23. Nc4 {[%clk 0:01:03]}  fxe4 {[%clk 0:00:42]} 24. Rxf8+ {[%clk 0:00:58]}  Rxf8 {[%clk 0:00:41]} 25. Rxe4 {[%clk 0:00:55]}  Qh5+ {[%clk 0:00:29]} 26. Rh4 {[%clk 0:00:51]}  Qd1+ {[%clk 0:00:29]} 27. Kh2 {[%clk 0:00:51]}  Re8 {[%clk 0:00:19]} 28. Re4 {[%clk 0:00:39]}  Qh5+ {[%clk 0:00:16]} 29. Kg1 {[%clk 0:00:36]}  Be3+ {[%clk 0:00:14]} 30. Nxe3 {[%clk 0:00:34]}  Rd8 {[%clk 0:00:11]} 31. Rd4 {[%clk 0:00:30]}  Rxd4 {[%clk 0:00:08]} 32. cxd4 {[%clk 0:00:30]}  Qh6 {[%clk 0:00:06]} 33. Qd5+ {[%clk 0:00:26]}  Kf8 {[%clk 0:00:06]} 34. Qf5+ {[%clk 0:00:25]}  Ke8 {[%clk 0:00:05]} 35. Qc8+ {[%clk 0:00:24]}  Ke7 {[%clk 0:00:03]} 36. Qxb7+ {[%clk 0:00:25]}  Ke8 {[%clk 0:00:04]} 37. Qe4+ {[%clk 0:00:25]}  Kd8 {[%clk 0:00:04]} 38. Kg2 {[%clk 0:00:24]}  Qb6 {[%clk 0:00:02]} 39. b3 {[%clk 0:00:22]}  Qa6 {[%clk 0:00:03]} 40. a4 {[%clk 0:00:21]}  Qe2+ {[%clk 0:00:03]} 41. Kh3 {[%clk 0:00:21]}  h5 {[%clk 0:00:02]} 42. Qd5+ {[%clk 0:00:19]}  Ke8 {[%clk 0:00:02]} 43. Qe6+ {[%clk 0:00:18]}  Kf8 {[%clk 0:00:02]} 44. Qf5+ {[%clk 0:00:18]}  Kg8 {[%clk 0:00:03]} 45. Qg5+ {[%clk 0:00:16]}  Kh7 {[%clk 0:00:04]} 46. Qf5+ {[%clk 0:00:15]}  Kh6 {[%clk 0:00:03]} 47. Qf4+ {[%clk 0:00:14]}  Kh7 {[%clk 0:00:04]} 48. d5 {[%clk 0:00:14]}  Qe1 {[%clk 0:00:01]} 49. Qe4+ {[%clk 0:00:13]}  Kh6 {[%clk 0:00:01]} 50. Nf5+ {[%clk 0:00:13]}  Kg5 {[%clk 0:00:02]} 51. Qxe1 {[%clk 0:00:13]}  Kxf5 {[%clk 0:00:02]} 52. Qe3 {[%clk 0:00:13]}  Kf6 {[%clk 0:00:03]} 53. Qxa7 {[%clk 0:00:13]}  Kf5 {[%clk 0:00:04]} 54. Qe3 {[%clk 0:00:13]} 1-0


[Site "https://www.chess.com"]

[Event "Titled Tuesday Blitz December 27 Early 2022"]
[White "Orujov, Elshad"]
[Black "Bogaudinov, Rushan"]
[WhiteFideId "13403540"]
[BlackFideId "4129288"]
[WhiteElo "2304"]
[BlackElo "1939"]
[Result "0-1"]
[Round "08"]
[TimeControl "180+2"]
[Date "2022.12.27"]
[WhiteClock "0:01:04"]
[BlackClock "0:01:15"]

1. e4 {[%clk 0:03:00]}  d6 {[%clk 0:02:59]} 2. Nf3 {[%clk 0:03:00]}  c5 {[%clk 0:02:59]} 3. d4 {[%clk 0:03:00]}  cxd4 {[%clk 0:03:00]} 4. Nxd4 {[%clk 0:03:01]}  Nf6 {[%clk 0:03:00]} 5. Nc3 {[%clk 0:03:01]}  a6 {[%clk 0:03:00]} 6. h3 {[%clk 0:03:00]}  g6 {[%clk 0:03:00]} 7. Be3 {[%clk 0:03:00]}  Bg7 {[%clk 0:03:00]} 8. Qd2 {[%clk 0:03:00]}  Nc6 {[%clk 0:02:57]} 9. O-O-O {[%clk 0:03:00]}  Bd7 {[%clk 0:02:54]} 10. g4 {[%clk 0:03:00]}  Rc8 {[%clk 0:02:42]} 11. g5 {[%clk 0:02:58]}  Ng8 {[%clk 0:02:41]} 12. h4 {[%clk 0:02:57]}  h5 {[%clk 0:02:40]} 13. f4 {[%clk 0:02:55]}  Qa5 {[%clk 0:02:34]} 14. Kb1 {[%clk 0:02:53]}  e6 {[%clk 0:02:22]} 15. Nxc6 {[%clk 0:02:33]}  Rxc6 {[%clk 0:02:17]} 16. Bd4 {[%clk 0:02:31]}  e5 {[%clk 0:02:15]} 17. fxe5 {[%clk 0:02:31]}  Bxe5 {[%clk 0:02:15]} 18. Bxe5 {[%clk 0:02:31]}  Qxe5 {[%clk 0:02:13]} 19. Bc4 {[%clk 0:02:27]}  Ne7 {[%clk 0:02:10]} 20. Rhf1 {[%clk 0:02:23]}  Rxc4 {[%clk 0:02:08]} 21. Qxd6 {[%clk 0:02:16]}  Qxd6 {[%clk 0:02:08]} 22. Rxd6 {[%clk 0:02:17]}  Be6 {[%clk 0:02:02]} 23. Nd5 {[%clk 0:02:14]}  Nxd5 {[%clk 0:01:52]} 24. exd5 {[%clk 0:02:15]}  Bf5 {[%clk 0:01:47]} 25. Re1+ {[%clk 0:02:14]}  Kf8 {[%clk 0:01:47]} 26. Rb6 {[%clk 0:02:05]}  Rxc2 {[%clk 0:01:44]} 27. Ka1 {[%clk 0:02:03]}  Kg7 {[%clk 0:01:43]} 28. Rxb7 {[%clk 0:02:02]}  Rhc8 {[%clk 0:01:42]} 29. a3 {[%clk 0:01:59]}  Rc1+ {[%clk 0:01:42]} 30. Rxc1 {[%clk 0:01:59]}  Rxc1+ {[%clk 0:01:42]} 31. Ka2 {[%clk 0:01:59]}  Rd1 {[%clk 0:01:42]} 32. Rb6 {[%clk 0:01:55]}  a5 {[%clk 0:01:38]} 33. Rb5 {[%clk 0:01:54]}  a4 {[%clk 0:01:36]} 34. b3 {[%clk 0:01:49]}  Rd2+ {[%clk 0:01:34]} 35. Ka1 {[%clk 0:01:47]}  axb3 {[%clk 0:01:34]} 36. Rxb3 {[%clk 0:01:48]}  Rxd5 {[%clk 0:01:34]} 37. Rb4 {[%clk 0:01:43]}  Rd3 {[%clk 0:01:24]} 38. a4 {[%clk 0:01:43]}  Rh3 {[%clk 0:01:22]} 39. Kb2 {[%clk 0:01:41]}  Bg4 {[%clk 0:01:22]} 40. a5 {[%clk 0:01:40]}  Rxh4 {[%clk 0:01:22]} 41. a6 {[%clk 0:01:39]}  Rh2+ {[%clk 0:01:22]} 42. Ka3 {[%clk 0:01:32]}  Be6 {[%clk 0:01:20]} 43. Rb6 {[%clk 0:01:17]}  Ra2+ {[%clk 0:01:15]} 44. Kb4 {[%clk 0:01:17]}  Rb2+ {[%clk 0:01:14]} 45. Ka5 {[%clk 0:01:06]}  Rxb6 {[%clk 0:01:15]} 46. a7 {[%clk 0:01:06]}  Bd5 {[%clk 0:01:15]} 47. Kxb6 {[%clk 0:01:04]}  h4 {[%clk 0:01:15]} 0-1


[Site "https://www.chess.com"]

[Event "Titled Tuesday Blitz December 27 Early 2022"]
[White "Osinovsky, Stepan"]
[Black "Sargsyan, Anna M."]
[WhiteFideId "4157354"]
[BlackFideId "13308130"]
[WhiteElo "2241"]
[BlackElo "2375"]
[Result "1-0"]
[Round "08"]
[TimeControl "180+2"]
[Date "2022.12.27"]
[WhiteClock "0:00:14"]
[BlackClock "0:00:24"]

1. Nf3 {[%clk 0:03:00]}  d5 {[%clk 0:02:59]} 2. g3 {[%clk 0:02:57]}  Nf6 {[%clk 0:02:57]} 3. Bg2 {[%clk 0:02:58]}  g6 {[%clk 0:02:57]} 4. O-O {[%clk 0:02:57]}  Bg7 {[%clk 0:02:58]} 5. d3 {[%clk 0:02:58]}  O-O {[%clk 0:02:58]} 6. Nbd2 {[%clk 0:02:55]}  c5 {[%clk 0:02:57]} 7. e4 {[%clk 0:02:54]}  Nc6 {[%clk 0:02:58]} 8. Re1 {[%clk 0:02:52]}  e5 {[%clk 0:02:58]} 9. exd5 {[%clk 0:02:51]}  Nxd5 {[%clk 0:02:59]} 10. Nc4 {[%clk 0:02:48]}  Re8 {[%clk 0:02:59]} 11. Ng5 {[%clk 0:02:37]}  b6 {[%clk 0:02:50]} 12. Nxf7 {[%clk 0:02:09]}  Kxf7 {[%clk 0:02:23]} 13. Qf3+ {[%clk 0:02:06]}  Ke6 {[%clk 0:01:51]} 14. Bh3+ {[%clk 0:01:51]}  Ke7 {[%clk 0:01:48]} 15. Bg5+ {[%clk 0:01:48]}  Bf6 {[%clk 0:01:41]} 16. Nxe5 {[%clk 0:01:29]}  Nd4 {[%clk 0:01:00]} 17. Bxf6+ {[%clk 0:00:33]}  Kf8 {[%clk 0:00:52]} 18. Be7+ {[%clk 0:00:21]}  Kg7 {[%clk 0:00:38]} 19. Qf7+ {[%clk 0:00:20]}  Kh6 {[%clk 0:00:38]} 20. Bxd8 {[%clk 0:00:17]}  Bxh3 {[%clk 0:00:29]} 21. Qxd5 {[%clk 0:00:13]}  Raxd8 {[%clk 0:00:27]} 22. Nf7+ {[%clk 0:00:13]}  Kg7 {[%clk 0:00:24]} 23. Nxd8 {[%clk 0:00:14]} 1-0


[Site "https://www.chess.com"]

[Event "Titled Tuesday Blitz December 27 Early 2022"]
[White "Ozen, Bahadir"]
[Black "Tactrics"]
[WhiteFideId "6337058"]
[WhiteElo "2369"]
[BlackElo "2976"]
[Result "0-1"]
[Round "08"]
[TimeControl "180+2"]
[Date "2022.12.27"]
[WhiteClock "0:00:03"]
[BlackClock "0:00:14"]

1. g3 {[%clk 0:03:00]}  d5 {[%clk 0:02:58]} 2. Nf3 {[%clk 0:03:01]}  c6 {[%clk 0:02:59]} 3. Bg2 {[%clk 0:03:01]}  Bg4 {[%clk 0:02:59]} 4. h3 {[%clk 0:03:01]}  Bh5 {[%clk 0:02:58]} 5. O-O {[%clk 0:03:01]}  Nd7 {[%clk 0:02:59]} 6. d3 {[%clk 0:03:02]}  e6 {[%clk 0:02:58]} 7. e4 {[%clk 0:02:55]}  Ngf6 {[%clk 0:02:54]} 8. Qe1 {[%clk 0:02:55]}  Bc5 {[%clk 0:02:49]} 9. b4 {[%clk 0:02:50]}  Be7 {[%clk 0:02:45]} 10. Bb2 {[%clk 0:02:46]}  a5 {[%clk 0:02:44]} 11. a3 {[%clk 0:02:45]}  axb4 {[%clk 0:02:44]} 12. axb4 {[%clk 0:02:46]}  Rxa1 {[%clk 0:02:44]} 13. Bxa1 {[%clk 0:02:47]}  Qb6 {[%clk 0:02:42]} 14. e5 {[%clk 0:02:29]}  Ng8 {[%clk 0:02:42]} 15. Bc3 {[%clk 0:02:26]}  Bd8 {[%clk 0:02:31]} 16. Bd4 {[%clk 0:02:20]}  Qc7 {[%clk 0:02:24]} 17. Nc3 {[%clk 0:02:06]}  Bxf3 {[%clk 0:02:23]} 18. Bxf3 {[%clk 0:02:05]}  Ne7 {[%clk 0:02:24]} 19. Bg2 {[%clk 0:02:00]}  Nf5 {[%clk 0:02:22]} 20. Ne2 {[%clk 0:01:51]}  Nxd4 {[%clk 0:02:20]} 21. Nxd4 {[%clk 0:01:52]}  Qxe5 {[%clk 0:02:15]} 22. Qxe5 {[%clk 0:01:51]}  Nxe5 {[%clk 0:02:16]} 23. Re1 {[%clk 0:01:51]}  Bf6 {[%clk 0:02:06]} 24. Nb3 {[%clk 0:01:43]}  O-O {[%clk 0:02:03]} 25. Na5 {[%clk 0:01:36]}  b6 {[%clk 0:01:58]} 26. Nb3 {[%clk 0:01:32]}  Ra8 {[%clk 0:01:54]} 27. Rc1 {[%clk 0:01:00]}  Ra3 {[%clk 0:01:49]} 28. Nd2 {[%clk 0:00:50]}  Kf8 {[%clk 0:01:42]} 29. b5 {[%clk 0:00:38]}  c5 {[%clk 0:01:36]} 30. Bf1 {[%clk 0:00:32]}  Ra2 {[%clk 0:01:30]} 31. f4 {[%clk 0:00:31]}  Ng6 {[%clk 0:01:22]} 32. Nf3 {[%clk 0:00:31]}  Bc3 {[%clk 0:01:16]} 33. h4 {[%clk 0:00:31]}  Ne7 {[%clk 0:01:16]} 34. h5 {[%clk 0:00:21]}  Nf5 {[%clk 0:01:14]} 35. Kf2 {[%clk 0:00:21]}  Nd6 {[%clk 0:01:14]} 36. g4 {[%clk 0:00:20]}  Ke7 {[%clk 0:01:07]} 37. Kg3 {[%clk 0:00:20]}  Ra1 {[%clk 0:01:01]} 38. Rxa1 {[%clk 0:00:19]}  Bxa1 {[%clk 0:01:01]} 39. c4 {[%clk 0:00:19]}  Bc3 {[%clk 0:00:47]} 40. Kf2 {[%clk 0:00:19]}  f6 {[%clk 0:00:46]} 41. Be2 {[%clk 0:00:18]}  Bb2 {[%clk 0:00:41]} 42. Kg3 {[%clk 0:00:18]}  Bc1 {[%clk 0:00:41]} 43. Bf1 {[%clk 0:00:18]}  dxc4 {[%clk 0:00:40]} 44. dxc4 {[%clk 0:00:18]}  Ne4+ {[%clk 0:00:41]} 45. Kg2 {[%clk 0:00:18]}  Bxf4 {[%clk 0:00:42]} 46. Bd3 {[%clk 0:00:19]}  Nd6 {[%clk 0:00:40]} 47. Kf2 {[%clk 0:00:13]}  f5 {[%clk 0:00:40]} 48. gxf5 {[%clk 0:00:13]}  exf5 {[%clk 0:00:41]} 49. Ke2 {[%clk 0:00:13]}  Kf6 {[%clk 0:00:41]} 50. Ne1 {[%clk 0:00:12]}  g6 {[%clk 0:00:39]} 51. hxg6 {[%clk 0:00:11]}  hxg6 {[%clk 0:00:40]} 52. Ng2 {[%clk 0:00:09]}  Bg5 {[%clk 0:00:40]} 53. Kf3 {[%clk 0:00:09]}  Ke5 {[%clk 0:00:39]} 54. Ke2 {[%clk 0:00:09]}  Kd4 {[%clk 0:00:39]} 55. Ne1 {[%clk 0:00:09]}  Nxc4 {[%clk 0:00:38]} 56. Nf3+ {[%clk 0:00:10]}  Kc3 {[%clk 0:00:36]} 57. Nxg5 {[%clk 0:00:11]}  Ne5 {[%clk 0:00:33]} 58. Bb1 {[%clk 0:00:11]}  Kb2 {[%clk 0:00:31]} 59. Bd3 {[%clk 0:00:08]}  Nxd3 {[%clk 0:00:27]} 60. Kxd3 {[%clk 0:00:09]}  Kb3 {[%clk 0:00:28]} 61. Ne6 {[%clk 0:00:08]}  c4+ {[%clk 0:00:28]} 62. Kd2 {[%clk 0:00:08]}  Kb2 {[%clk 0:00:28]} 63. Nd4 {[%clk 0:00:08]}  c3+ {[%clk 0:00:29]} 64. Kd3 {[%clk 0:00:08]}  g5 {[%clk 0:00:27]} 65. Nc2 {[%clk 0:00:02]}  g4 {[%clk 0:00:26]} 66. Ne3 {[%clk 0:00:02]}  g3 {[%clk 0:00:20]} 67. Nc4+ {[%clk 0:00:03]}  Kb3 {[%clk 0:00:16]} 68. Na5+ {[%clk 0:00:03]}  Ka4 {[%clk 0:00:14]} 0-1


[Site "https://www.chess.com"]

[Event "Titled Tuesday Blitz December 27 Early 2022"]
[White "Peatman, Carter"]
[Black "gshwbedhkhd"]
[WhiteFideId "2096480"]
[WhiteElo "1998"]
[BlackElo "2577"]
[Result "1-0"]
[Round "08"]
[TimeControl "180+2"]
[Date "2022.12.27"]
[WhiteClock "0:00:48"]
[BlackClock "0:01:19"]

1. d4 {[%clk 0:03:00]}  f5 {[%clk 0:02:59]} 2. Bf4 {[%clk 0:03:00]}  Nf6 {[%clk 0:02:58]} 3. Nf3 {[%clk 0:03:01]}  g6 {[%clk 0:02:57]} 4. e3 {[%clk 0:03:01]}  Bg7 {[%clk 0:02:58]} 5. h3 {[%clk 0:03:01]}  O-O {[%clk 0:02:58]} 6. c4 {[%clk 0:03:01]}  d6 {[%clk 0:02:59]} 7. Nc3 {[%clk 0:03:01]}  Nc6 {[%clk 0:02:58]} 8. Bh2 {[%clk 0:03:02]}  e6 {[%clk 0:02:53]} 9. Be2 {[%clk 0:02:59]}  Qe8 {[%clk 0:02:52]} 10. O-O {[%clk 0:02:59]}  e5 {[%clk 0:02:51]} 11. Nd5 {[%clk 0:02:54]}  Nxd5 {[%clk 0:02:49]} 12. cxd5 {[%clk 0:02:54]}  Nd8 {[%clk 0:02:50]} 13. Rc1 {[%clk 0:02:46]}  e4 {[%clk 0:02:48]} 14. Nd2 {[%clk 0:02:44]}  Rf7 {[%clk 0:02:48]} 15. Rc3 {[%clk 0:02:37]}  Re7 {[%clk 0:02:45]} 16. Qc2 {[%clk 0:02:37]}  c6 {[%clk 0:02:45]} 17. Rc1 {[%clk 0:02:29]}  Bd7 {[%clk 0:02:41]} 18. dxc6 {[%clk 0:02:23]}  bxc6 {[%clk 0:02:37]} 19. Bxd6 {[%clk 0:02:16]}  Rf7 {[%clk 0:02:36]} 20. Nc4 {[%clk 0:01:59]}  Bh6 {[%clk 0:02:21]} 21. Bh2 {[%clk 0:01:55]}  Rg7 {[%clk 0:02:11]} 22. Nd6 {[%clk 0:01:53]}  Qf8 {[%clk 0:02:10]} 23. Bc4+ {[%clk 0:01:46]}  Be6 {[%clk 0:01:53]} 24. Bxe6+ {[%clk 0:01:42]}  Nxe6 {[%clk 0:01:54]} 25. Rxc6 {[%clk 0:01:42]}  f4 {[%clk 0:01:50]} 26. Qb3 {[%clk 0:01:41]}  fxe3 {[%clk 0:01:45]} 27. Qxe6+ {[%clk 0:01:32]}  Kh8 {[%clk 0:01:44]} 28. Rc8 {[%clk 0:01:26]}  exf2+ {[%clk 0:01:27]} 29. Kf1 {[%clk 0:01:25]}  Bxc1 {[%clk 0:01:26]} 30. Rxf8+ {[%clk 0:01:23]}  Rxf8 {[%clk 0:01:27]} 31. Be5 {[%clk 0:01:15]}  e3 {[%clk 0:01:26]} 32. Bxg7+ {[%clk 0:01:03]}  Kxg7 {[%clk 0:01:27]} 33. Qe5+ {[%clk 0:01:00]}  Kg8 {[%clk 0:01:25]} 34. Nc4 {[%clk 0:00:52]}  Rf5 {[%clk 0:01:20]} 35. Qe6+ {[%clk 0:00:48]}  Kg7 {[%clk 0:01:19]} 36. Nxe3 {[%clk 0:00:48]} 1-0


[Site "https://www.chess.com"]

[Event "Titled Tuesday Blitz December 27 Early 2022"]
[White "Preotu, Razvan"]
[Black "Moskvin, Anatoly"]
[WhiteFideId "2613280"]
[BlackFideId "24199990"]
[WhiteElo "2475"]
[BlackElo "2189"]
[Result "1-0"]
[Round "08"]
[TimeControl "180+2"]
[Date "2022.12.27"]
[WhiteClock "0:00:34"]
[BlackClock "0:00:05"]

1. e4 {[%clk 0:03:00]}  e5 {[%clk 0:03:00]} 2. Nf3 {[%clk 0:03:00]}  Nc6 {[%clk 0:03:00]} 3. Bc4 {[%clk 0:03:00]}  Nf6 {[%clk 0:03:01]} 4. d3 {[%clk 0:03:01]}  Bc5 {[%clk 0:03:01]} 5. O-O {[%clk 0:03:00]}  d6 {[%clk 0:02:59]} 6. c3 {[%clk 0:03:00]}  Bb6 {[%clk 0:03:00]} 7. Re1 {[%clk 0:02:58]}  Ne7 {[%clk 0:03:00]} 8. d4 {[%clk 0:02:53]}  Bg4 {[%clk 0:02:41]} 9. dxe5 {[%clk 0:02:52]}  Bxf3 {[%clk 0:02:41]} 10. Qxf3 {[%clk 0:02:51]}  dxe5 {[%clk 0:02:41]} 11. Rd1 {[%clk 0:02:43]}  Qc8 {[%clk 0:02:39]} 12. Bg5 {[%clk 0:02:43]}  Qg4 {[%clk 0:02:24]} 13. Qxg4 {[%clk 0:01:47]}  Nxg4 {[%clk 0:02:23]} 14. Rf1 {[%clk 0:01:46]}  h6 {[%clk 0:02:09]} 15. Bc1 {[%clk 0:01:18]}  Rd8 {[%clk 0:01:59]} 16. Nd2 {[%clk 0:01:19]}  Ng6 {[%clk 0:01:50]} 17. h3 {[%clk 0:01:10]}  Nf6 {[%clk 0:01:51]} 18. Re1 {[%clk 0:01:05]}  O-O {[%clk 0:01:31]} 19. Nf3 {[%clk 0:01:02]}  Ne8 {[%clk 0:01:26]} 20. b4 {[%clk 0:00:54]}  Nd6 {[%clk 0:01:25]} 21. Bb3 {[%clk 0:00:54]}  c5 {[%clk 0:00:58]} 22. a4 {[%clk 0:00:48]}  c4 {[%clk 0:00:36]} 23. Bc2 {[%clk 0:00:47]}  a5 {[%clk 0:00:37]} 24. Ba3 {[%clk 0:00:44]}  Rfe8 {[%clk 0:00:28]} 25. g3 {[%clk 0:00:39]}  axb4 {[%clk 0:00:20]} 26. Bxb4 {[%clk 0:00:40]}  Nc8 {[%clk 0:00:15]} 27. a5 {[%clk 0:00:40]}  Ba7 {[%clk 0:00:16]} 28. Ba4 {[%clk 0:00:39]}  Re6 {[%clk 0:00:16]} 29. Red1 {[%clk 0:00:39]}  Rxd1+ {[%clk 0:00:14]} 30. Rxd1 {[%clk 0:00:40]}  Rf6 {[%clk 0:00:15]} 31. Rd8+ {[%clk 0:00:39]}  Kh7 {[%clk 0:00:15]} 32. Kg2 {[%clk 0:00:38]}  Nce7 {[%clk 0:00:14]} 33. Rd7 {[%clk 0:00:35]}  Nc6 {[%clk 0:00:08]} 34. Bxc6 {[%clk 0:00:34]}  Rxc6 {[%clk 0:00:07]} 35. Rxb7 {[%clk 0:00:35]}  Ra6 {[%clk 0:00:06]} 36. Rxf7 {[%clk 0:00:34]}  Kg8 {[%clk 0:00:05]} 37. Rc7 {[%clk 0:00:34]}  Bb8 {[%clk 0:00:05]} 38. Rc8+ {[%clk 0:00:34]} 1-0


[Site "https://www.chess.com"]

[Event "Titled Tuesday Blitz December 27 Early 2022"]
[White "Roque Sola, Gisela"]
[Black "Gerbelli Neto, Eduardo"]
[WhiteFideId "5120241"]
[BlackFideId "2103281"]
[WhiteElo "2061"]
[BlackElo "2114"]
[Result "0-1"]
[Round "08"]
[TimeControl "180+2"]
[Date "2022.12.27"]
[WhiteClock "0:00:07"]
[BlackClock "0:00:22"]

1. e4 {[%clk 0:02:59]}  e5 {[%clk 0:02:59]} 2. Nf3 {[%clk 0:02:58]}  Nc6 {[%clk 0:02:59]} 3. Bb5 {[%clk 0:02:56]}  a6 {[%clk 0:02:59]} 4. Ba4 {[%clk 0:02:56]}  d6 {[%clk 0:03:00]} 5. O-O {[%clk 0:02:55]}  Bg4 {[%clk 0:03:00]} 6. h3 {[%clk 0:02:52]}  h5 {[%clk 0:03:00]} 7. c3 {[%clk 0:02:50]}  Qf6 {[%clk 0:03:00]} 8. d3 {[%clk 0:02:42]}  Ne7 {[%clk 0:02:59]} 9. Be3 {[%clk 0:02:30]}  Bxf3 {[%clk 0:02:56]} 10. Qxf3 {[%clk 0:02:29]}  Qxf3 {[%clk 0:02:56]} 11. gxf3 {[%clk 0:02:30]}  g5 {[%clk 0:02:57]} 12. Kh2 {[%clk 0:02:23]}  f6 {[%clk 0:02:57]} 13. d4 {[%clk 0:02:18]}  b5 {[%clk 0:02:44]} 14. Bb3 {[%clk 0:02:16]}  Na5 {[%clk 0:02:34]} 15. Be6 {[%clk 0:02:15]}  Ng6 {[%clk 0:02:22]} 16. Nd2 {[%clk 0:02:10]}  Ke7 {[%clk 0:02:19]} 17. Bf5 {[%clk 0:02:10]}  Nf4 {[%clk 0:02:18]} 18. Bxf4 {[%clk 0:02:09]}  gxf4 {[%clk 0:02:17]} 19. a4 {[%clk 0:02:07]}  Nc4 {[%clk 0:01:39]} 20. Nb3 {[%clk 0:01:38]}  Rb8 {[%clk 0:01:16]} 21. axb5 {[%clk 0:01:18]}  Rxb5 {[%clk 0:01:10]} 22. Nc1 {[%clk 0:01:13]}  Nd2 {[%clk 0:01:02]} 23. Rd1 {[%clk 0:01:08]}  Nxf3+ {[%clk 0:01:00]} 24. Kh1 {[%clk 0:01:03]}  Rxb2 {[%clk 0:00:54]} 25. dxe5 {[%clk 0:01:02]}  Rxf2 {[%clk 0:00:50]} 26. exd6+ {[%clk 0:00:59]}  cxd6 {[%clk 0:00:51]} 27. Ra2 {[%clk 0:00:58]}  Rxa2 {[%clk 0:00:42]} 28. Nxa2 {[%clk 0:00:59]}  Rg8 {[%clk 0:00:38]} 29. Nb4 {[%clk 0:00:43]}  a5 {[%clk 0:00:35]} 30. Nc6+ {[%clk 0:00:38]}  Kf7 {[%clk 0:00:33]} 31. Nxa5 {[%clk 0:00:35]}  Rg3 {[%clk 0:00:34]} 32. Nc4 {[%clk 0:00:33]}  Ne5 {[%clk 0:00:26]} 33. Nxe5+ {[%clk 0:00:31]}  fxe5 {[%clk 0:00:26]} 34. c4 {[%clk 0:00:29]}  Rc3 {[%clk 0:00:25]} 35. Rg1 {[%clk 0:00:24]}  Rxc4 {[%clk 0:00:24]} 36. Kg2 {[%clk 0:00:16]}  Rc3 {[%clk 0:00:24]} 37. Kf2 {[%clk 0:00:15]}  Be7 {[%clk 0:00:23]} 38. Bg6+ {[%clk 0:00:15]}  Kf6 {[%clk 0:00:23]} 39. Bxh5 {[%clk 0:00:15]}  Re3 {[%clk 0:00:20]} 40. Bf3 {[%clk 0:00:12]}  Rd3 {[%clk 0:00:19]} 41. h4 {[%clk 0:00:11]}  Kf7 {[%clk 0:00:19]} 42. h5 {[%clk 0:00:10]}  Bh4+ {[%clk 0:00:20]} 43. Ke2 {[%clk 0:00:10]}  Re3+ {[%clk 0:00:20]} 44. Kd2 {[%clk 0:00:10]}  Rxf3 {[%clk 0:00:20]} 45. h6 {[%clk 0:00:11]}  Bf6 {[%clk 0:00:20]} 46. h7 {[%clk 0:00:10]}  Rh3 {[%clk 0:00:21]} 47. Rg8 {[%clk 0:00:08]}  Rxh7 {[%clk 0:00:20]} 48. Ra8 {[%clk 0:00:08]}  Rh2+ {[%clk 0:00:21]} 49. Ke1 {[%clk 0:00:07]}  Ke6 {[%clk 0:00:22]} 0-1


[Site "https://www.chess.com"]

[Event "Titled Tuesday Blitz December 27 Early 2022"]
[White "Roque Sola, Jose Luis"]
[Black "Aghamaliyev, Cemil"]
[WhiteFideId "5120390"]
[BlackFideId "13400215"]
[WhiteElo "2217"]
[BlackElo "2482"]
[Result "0-1"]
[Round "08"]
[TimeControl "180+2"]
[Date "2022.12.27"]
[WhiteClock "0:00:02"]
[BlackClock "0:00:56"]

1. c4 {[%clk 0:03:00]}  e5 {[%clk 0:02:58]} 2. Nc3 {[%clk 0:02:59]}  Bb4 {[%clk 0:02:57]} 3. Nd5 {[%clk 0:02:57]}  a5 {[%clk 0:02:57]} 4. a3 {[%clk 0:02:44]}  Bc5 {[%clk 0:02:54]} 5. b3 {[%clk 0:02:38]}  c6 {[%clk 0:02:54]} 6. Nc3 {[%clk 0:02:38]}  Nf6 {[%clk 0:02:55]} 7. Bb2 {[%clk 0:02:38]}  d5 {[%clk 0:02:55]} 8. cxd5 {[%clk 0:02:31]}  cxd5 {[%clk 0:02:55]} 9. b4 {[%clk 0:02:21]}  Bb6 {[%clk 0:02:49]} 10. e3 {[%clk 0:02:12]}  O-O {[%clk 0:02:47]} 11. Nf3 {[%clk 0:02:08]}  Bg4 {[%clk 0:02:47]} 12. Be2 {[%clk 0:02:07]}  d4 {[%clk 0:02:45]} 13. Na4 {[%clk 0:01:58]}  d3 {[%clk 0:02:45]} 14. Bxd3 {[%clk 0:01:45]}  Qxd3 {[%clk 0:02:41]} 15. Nxb6 {[%clk 0:01:44]}  e4 {[%clk 0:02:37]} 16. Nxa8 {[%clk 0:01:41]}  Nbd7 {[%clk 0:02:35]} 17. Nc7 {[%clk 0:01:21]}  Bh5 {[%clk 0:02:28]} 18. Qb1 {[%clk 0:00:45]}  Qxb1+ {[%clk 0:01:47]} 19. Rxb1 {[%clk 0:00:46]}  exf3 {[%clk 0:01:48]} 20. gxf3 {[%clk 0:00:45]}  Bxf3 {[%clk 0:01:49]} 21. Rg1 {[%clk 0:00:43]}  axb4 {[%clk 0:01:47]} 22. axb4 {[%clk 0:00:42]}  g6 {[%clk 0:01:47]} 23. Ra1 {[%clk 0:00:32]}  b6 {[%clk 0:01:29]} 24. d3 {[%clk 0:00:26]}  h5 {[%clk 0:01:26]} 25. e4 {[%clk 0:00:25]}  Ng4 {[%clk 0:01:22]} 26. h3 {[%clk 0:00:21]}  Nge5 {[%clk 0:01:22]} 27. Kd2 {[%clk 0:00:18]}  f5 {[%clk 0:01:15]} 28. Ra8 {[%clk 0:00:17]}  Rxa8 {[%clk 0:01:14]} 29. Nxa8 {[%clk 0:00:17]}  fxe4 {[%clk 0:01:12]} 30. dxe4 {[%clk 0:00:17]}  Bxe4 {[%clk 0:01:12]} 31. Bxe5 {[%clk 0:00:17]}  Nxe5 {[%clk 0:01:13]} 32. Ke3 {[%clk 0:00:17]}  Bxa8 {[%clk 0:01:13]} 33. f4 {[%clk 0:00:16]}  Nd7 {[%clk 0:01:06]} 34. Rxg6+ {[%clk 0:00:15]}  Kf7 {[%clk 0:01:07]} 35. Rd6 {[%clk 0:00:14]}  Ke7 {[%clk 0:01:06]} 36. Rh6 {[%clk 0:00:14]}  Nf6 {[%clk 0:01:06]} 37. Kd4 {[%clk 0:00:11]}  Ke6 {[%clk 0:01:07]} 38. Rh8 {[%clk 0:00:10]}  Bc6 {[%clk 0:01:06]} 39. Rb8 {[%clk 0:00:09]}  b5 {[%clk 0:01:06]} 40. Rb6 {[%clk 0:00:09]}  Kd6 {[%clk 0:01:06]} 41. Rb8 {[%clk 0:00:08]}  Bd7 {[%clk 0:01:01]} 42. Ke3 {[%clk 0:00:07]}  Nd5+ {[%clk 0:01:00]} 43. Kf3 {[%clk 0:00:06]}  Nxb4 {[%clk 0:01:00]} 44. Kg3 {[%clk 0:00:06]}  Nd5 {[%clk 0:00:59]} 45. Rf8 {[%clk 0:00:04]}  b4 {[%clk 0:00:58]} 46. Rb8 {[%clk 0:00:02]}  Kc7 {[%clk 0:00:56]} 0-1


[Site "https://www.chess.com"]